Cogmind - Beta 11.1 @@@ ROGUE MODE // 2022.05.01 @ 05:03:08 Player: Olga Result: Destroyed by G-47 Trooper with Particle Gun Performance ------------- Evolutions (2) 1000 Regions Visited (3) 600 Robots Destroyed (2) 10 Value Destroyed (40) 40 Prototype IDs (0) 0 Alien Tech Used (0) 0 Bonus (470) 470 TOTAL SCORE: 2120 Bonus ------- Pacifist 470 Cogmind --------- Core Integrity 0/550 Matter 230/300 Energy 100/100 System Corruption 11% Temperature Cool (11) Movement Flying (40) Location -8/Materials Parts ------- > --- POWER (1) -------- (None) > --- PROPULSION (3) --- Flight Unit > --- UTILITY (5) ------ Targeting Computer > --- WEAPON (2) ------- (None) > --- INVENTORY (5) ---- Ion Engine Wheel Compact Wheel Structural Scanner EM Pulse Gun Peak State ------------ > --- POWER ------------ (None) > --- PROPULSION ------- Airjet > --- UTILITY ---------- Improved Sensor Array Signal Interpreter Targeting Computer > --- WEAPON ----------- (None) > --- INVENTORY -------- Ion Engine Wheel Compact Wheel Structural Scanner EM Pulse Gun [Rating: 8] Favorites ----------- Power None Propulsion Airjet Hover Unit Airjet Flight Unit Flight Unit Utility Signal Interpreter Device Improved Sensor Array Processor Signal Interpreter Weapon Assault Rifle Ballistic Gun Assault Rifle Special Weapon Mining Laser Build | -11 -10 -9 -8 ------- Run | Scr Mat Mat Mat Slots Evolved 4 | . . 2 2 Power . | . . . . Propulsion 1 | . . . 1 Utility 3 | . . 2 1 Weapon . | . . . . Parts Attached 10 | 1 2 . 7 Power . | . . . . Engine . | . . . . Core . | . . . . Reactor . | . . . . Propulsion 4 | . . . 4 Treads . | . . . . Leg . | . . . . Wheel . | . . . . Hover 1 | . . . 1 Flight 3 | . . . 3 Utility 4 | . 1 . 3 Device 2 | . . . 2 Storage . | . . . . Processor 2 | . 1 . 1 Hackware . | . . . . Protection . | . . . . Artifact . | . . . . Weapon 2 | 1 1 . . Energy Gun . | . . . . Energy Cannon . | . . . . Ballistic Gun 1 | 1 . . . Ballistic Cannon . | . . . . Launcher . | . . . . Special Weapon 1 | . 1 . . Impact Weapon . | . . . . Slashing Weapon . | . . . . Piercing Weapon . | . . . . Special Melee Weapon . | . . . . Unidentified Prototypes . | . . . . Corrupted Parts 1 | . . . 1 System Corruption 10 | . . . 10 Parts Lost 7 | . . 1 6 Power . | . . . . Propulsion 3 | . . . 3 Utility 2 | . . . 2 Weapon 2 | . . 1 1 Highest Loss Streak 4 | . . 1 4 To Critical Strikes . | . . . . Average Slot Usage (%) 28 | . 29 31 26 Device 1 | . . . 3 Processor 13 | . 8 11 16 Ballistic Gun 8 | . 14 11 3 Special Weapon 4 | . 7 9 . Naked Turns . | . . . . Heaviest Build 3 | 2 3 3 3 Greatest Support 8 | 3 3 3 8 Greatest Overweight (x) . | . . . . Average Overweight (x) . | . . . . Largest Inventory Capacity 5 | 5 5 5 5 Average Capacity 5 | 5 5 5 5 Most Carried 5 | 5 5 5 5 Average Carried 4 | 5 5 5 4 Final Capacity 5 | 5 5 5 5 Final Carried 5 | 5 5 5 5 Class Distribution -------------------- 100% | Mutant Dominant Class ---------------- Mutant | -10/Materials Mutant | -9/Materials Mutant | -8/Materials Resources | -11 -10 -9 -8 ----------- Run | Scr Mat Mat Mat Matter Collected 191 | 191 . . . Remotely . | . . . . Salvage Created 31 | . . . 31 Parts 2 | . . . 2 Haulers Intercepted . | . . . . Recyclers Shooed 1 | . . 1 . Parts Field Recycled . | . . . . Retrieved Matter . | . . . . Parts Self-Destructed . | . . . . Prevented . | . . . . Kills | -11 -10 -9 -8 ------- Run | Scr Mat Mat Mat Combat Hostiles Destroyed 2 | . . . 2 Guns 1 | . . . 1 AOE 1 | . . . 1 Classes Destroyed 1 | . . . 1 Swarmer 2 | . . . 2 Best Kill Streak 1 | . . . 1 Combat Bots Only 1 | . . . 1 Max Kills in Single Turn 1 | . . . 1 Gunslinging . | . . . . Exploded 1 | . . . 1 Melee . | . . . . Uniques/NPCs Destroyed . | . . . . Combat | -11 -10 -9 -8 -------- Run | Scr Mat Mat Mat Damage Taken 899 | . 16 154 729 Core 629 | . 9 59 561 Absorbed by Shields . | . . . . Core Remaining (%) 93 | 100 96 85 . Volleys Fired 14 | . 6 . 8 Largest 1 | . 1 . 1 Hottest 100 | . 100 . 20 Shots Fired 14 | . 6 . 8 Gun 8 | . . . 8 Cannon . | . . . . Launcher . | . . . . Special 6 | . 6 . . Kinetic 8 | . . . 8 Thermal 6 | . 6 . . Explosive . | . . . . Electromagnetic . | . . . . Robot Hit Streak 2 | . . . 2 Robot Miss Streak 1 | . . . 1 Penetration Max . | . . . . Secondary Targets . | . . . . Shots Hit Robots 5 | . . . 5 Core Hits 5 | . . . 5 Critical Kills . | . . . . Critical Parts Destroyed . | . . . . Critical Strikes . | . . . . Melee Attacks . | . . . . Impact . | . . . . Slashing . | . . . . Piercing . | . . . . Sneak Attacks . | . . . . Combat Hostiles . | . . . . Follow-up Attacks . | . . . . Damage Inflicted 218 | . . 35 183 Guns 62 | . . . 62 Cannons . | . . . . Explosions 103 | . . . 103 Melee . | . . . . Ramming 53 | . . 35 18 Kinetic 62 | . . . 62 Thermal . | . . . . Explosive . | . . . . Electromagnetic 103 | . . . 103 Impact . | . . . . Slashing . | . . . . Piercing . | . . . . Highest Corruption 11 | . . . 11 Average Corruption 3 | . . . 3 Corruption Purged . | . . . . Corruption Blocked . | . . . . Effects 1 | . . . 1 Data Loss (major) 1 | . . . 1 Overload Shots . | . . . . Overflow Damage . | . . . . Projectiles . | . . . . Explosions . | . . . . Melee . | . . . . Knockbacks 2 | . . 1 1 Impact 2 | . . 1 1 Kinetic . | . . . . Secondary . | . . . . Self-Inflicted Damage 37 | . . 16 21 Shots 1 | . . . 1 Rammed 9 | . . 4 5 Targets Rammed 9 | . . 4 5 Kicked . | . . . . Crushed . | . . . . Highest Temperature 25 | . 25 . 5 Average Temperature 21 | . 25 . 5 Received Heat Transfer 192 | . . 48 144 Siege Activations . | . . . . Robots Corrupted . | . . . . Combat Hostiles . | . . . . Parts Fried . | . . . . Impact Corruptions . | . . . . Robots Melted . | . . . . Combat Hostiles . | . . . . Parts Melted . | . . . . Heat Transferred . | . . . . Parts Sabotaged . | . . . . Parts Stolen . | . . . . Parts Stripped . | . . . . Power Chain Reactions . | . . . . Missiles Intercepted . | . . . . Alert | -11 -10 -9 -8 ------- Run | Scr Mat Mat Mat Peak Influence 230 | . 21 86 230 Initial 35 | . . 8 35 Average 65 | . 15 37 107 Maximum Alert Level 1 | . . . 1 Low Security (%) 94 | 100 100 100 88 Level 1 5 | . . . 11 Level 2 . | . . . . Level 3 . | . . . . Level 4 . | . . . . Level 5 . | . . . . High Security . | . . . . Max Security . | . . . . Squads Dispatched 9 | . 1 3 5 Investigation 5 | . . 2 3 Extermination . | . . . . Reinforcement 4 | . 1 1 2 Assault . | . . . . Garrison . | . . . . Intercept . | . . . . Searches Triggered . | . . . . Construction Impeded . | . . . . Haulers Reinforced . | . . . . Active Scanning Responses . | . . . . Cargo Convoy Interrupts . | . . . . Stealth | -11 -10 -9 -8 --------- Run | Scr Mat Mat Mat Distress Signals 1 | . . 1 . Communications Jammed . | . . . . Distress Signals . | . . . . Times Spotted 43 | . 4 12 27 Peak Tracking Total 18 | . 3 13 18 Tactical Retreats 3 | . . . 3 Traps | -11 -10 -9 -8 ------- Run | Scr Mat Mat Mat Traps Triggered 3 | . . 1 2 Indirectly . | . . . . Trap Hack Attempts . | . . . . Triggered . | . . . . Disarmed . | . . . . Reprogrammed . | . . . . Reused . | . . . . Traps Extracted . | . . . . Installed . | . . . . Triggered . | . . . . Machines | -11 -10 -9 -8 ---------- Run | Scr Mat Mat Mat Machines Disabled 2 | . . . 2 Max in Single Turn 2 | . . . 2 Machines Sabotaged . | . . . . Garrisons Compromised . | . . . . Overloaded Fab Kills . | . . . . Hacking | -11 -10 -9 -8 --------- Run | Scr Mat Mat Mat Machines Accessed 10 | . 1 4 5 Terminals 10 | . 1 4 5 Fabricators . | . . . . Repair Stations . | . . . . Recycling Units . | . . . . Scanalyzers . | . . . . Garrison Access . | . . . . Total Hacks 29 | . 3 11 15 Successful 8 | . 2 2 4 Failed 21 | . 1 9 11 Catastrophic 7 | . . 1 6 Database Lockouts . | . . . . Manual 23 | . 3 8 12 Terminals 29 | . 3 11 15 Fabricators . | . . . . Repair Stations . | . . . . Recycling Units . | . . . . Scanalyzers . | . . . . Garrison Access . | . . . . Terminal Hacks 7 | . 2 2 3 Level Access Points 2 | . 1 . 1 Branch Access Points 2 | . . 1 1 Terminal Index 3 | . 1 1 1 Fabricator Hacks . | . . . . Repair Station Hacks . | . . . . Recycling Unit Hacks . | . . . . Scanalyzer . | . . . . Garrison Access Hacks . | . . . . Unauthorized Hacks 1 | . . . 1 Terminals 1 | . . . 1 Detonate 1 | . . . 1 Fabricators . | . . . . Repair Stations . | . . . . Recycling Units . | . . . . Scanalyzers . | . . . . Garrison Access . | . . . . Data Cores Recovered . | . . . . Used . | . . . . Hacking Detections 9 | . . 4 5 Full Trace Events 8 | . . 3 5 Feedback Events . | . . . . Feedback Blocked . | . . . . Robot Schematics Acquired . | . . . . Robots Built . | . . . . Authchips . | . . . . Time . | . . . . Total Robot Build Rating . | . . . . Part Schematics Acquired . | . . . . Parts Built . | . . . . Authchips . | . . . . Time . | . . . . Total Part Build Rating . | . . . . Parts Repaired . | . . . . Time . | . . . . Parts Recycled . | . . . . Recycled Matter . | . . . . Retrieved Matter . | . . . . Retrieved Components . | . . . . Parts Scanalyzed . | . . . . Part Schematics Acquired . | . . . . Parts Damaged . | . . . . Bothacking | -11 -10 -9 -8 ------------ Run | Scr Mat Mat Mat Used RIF Installer . | . . . . Robots Hacked . | . . . . Non-combat . | . . . . Combat . | . . . . Robot Hacks Applied . | . . . . Relay Couplers Released . | . . . . Fabnet Peak Effective % . | . . . . Robots Rewired . | . . . . Allies Hacked . | . . . . Hacks Repelled . | . . . . Allies | -11 -10 -9 -8 -------- Run | Scr Mat Mat Mat Total Allies . | . . . . Largest Group . | . . . . Highest-Rated Group . | . . . . Highest-Rated Ally . | . . . . Total Orders . | . . . . Ally Attacks . | . . . . Total Damage . | . . . . Kills . | . . . . Allies Corrupted . | . . . . Allies Melted . | . . . . Intel | -11 -10 -9 -8 ------- Run | Scr Mat Mat Mat Robot Analysis Total . | . . . . Derelict Logs Recovered . | . . . . Drone Launches . | . . . . Drone Recoveries . | . . . . Exploration | -11 -10 -9 -8 ------------- Run | Scr Mat Mat Mat Turns Passed 315 | 3 80 81 151 Spaces Moved 473 | 3 87 153 230 Core 403 | 3 87 153 160 Treads . | . . . . Legs . | . . . . Wheels . | . . . . Hover 42 | . . . 42 Flight 28 | . . . 28 Fastest Speed 37 | 50 50 50 37 Average Speed 50 | 50 50 50 50 Slowest Speed 60 | 50 50 50 60 Overloaded Moves . | . . . . Propulsion Burnouts . | . . . . Robots Hopped 4 | . . . 4 Cave-ins Triggered . | . . . . Exploration Rate (%) 22 | 2 22 22 44 Regions Visited 3 Branch Regions . Pre-discovered Areas . | . . . . Known Exits Taken 2 | . 1 1 . Unknown Exits Taken 1 | 1 . . . Scrap Searched . | . . . . Spaces Dug 6 | . 6 . . Terrain Destroyed 6 | . 6 . . Melee . | . . . . Projectile 6 | . 6 . . AOE . | . . . . Terrain Rammed . | . . . . Walls Destroyed . | . . . . Machines Disabled . | . . . . Actions | -11 -10 -9 -8 --------- Run | Scr Mat Mat Mat Total 512 | 3 103 156 250 Wait 11 | . 9 . 2 Move 462 | 2 86 152 222 Hop 4 | . . . 4 Pick Up . | . . . . Fast Attach 10 | 1 2 . 7 Attach . | . . . . Detach 1 | . . . 1 Swap . | . . . . Drop 1 | . . . 1 Fire 14 | . 6 . 8 Melee . | . . . . Ram 9 | . . 4 5 Kick . | . . . . Crush . | . . . . Escape Stasis . | . . . . Rewire . | . . . . Trap . | . . . . Miscellaneous . | . . . . Route ------- -11/Scrapyard -10/Materials (discovered 3 exits: *Mat x3) -9/Materials (discovered 4 exits: *Mat / Min / Sto x2) -8/Materials (discovered 3 exits: Fac x3) History --------- Turn | Location | Event 1 | -11/Scrapyard | Released all parts (6) 1 | -11/Scrapyard | Discovered new exit (range 2) 4 | -11/Scrapyard | Entered Materials 9 | -10/Materials | Identified exit to Materials 84 | -10/Materials | Entered another Materials area 84 | -9/Materials | Evolved 2 slots: Utility x2 96 | -9/Materials | Identified exit to Mines 96 | -9/Materials | Identified exit to Storage 160 | -9/Materials | Discovered new exit (range 10) 164 | -9/Materials | Identified exit to Materials 165 | -9/Materials | Entered another Materials area 165 | -8/Materials | Evolved 2 slots: Propulsion x1, Utility x1 282 | -8/Materials | Core integrity fell below 50% 299 | -8/Materials | Identified exit to Factory 301 | -8/Materials | Core integrity fell below 20% 304 | -8/Materials | System corruption reached 10% 316 | -8/Materials | Destroyed by G-47 Trooper with Particle Gun Last Messages --------------- Infected machine control systems. >>Access(Main) Found 3 level access points to Factory: (16,7) (86,86) (88,14) Map updated. 00299_ Neutrino Reactor detonated. 00299_ S-10 Pest destroyed. 00299_ Neutrino Reactor explodes. 00303_ Acquired Corrupted Flight Unit. 00303_ Integrated Corrupted Flight Unit (+10). 00304_ K-01 Serf collects debris. 00310_ S-10 Pest destroyed. 00311_ Acquired Flight Unit. 00313_ Flight Unit destroyed. 00314_ Signal Interpreter destroyed. 00315_ System corrupted: Substantial component data lost. 00315_ S-10 Pest destroyed. 00315_ Electrolysis Chamber disabled. Map ----- +----------------------------------------------------+ | ???????# #????????????????? | | ???????#!!! #????????????????? | | #?????##!!! ##???????????????? | | #?????#"!! % #???????????????? | | #?????#T #???????????????? | | #?????#" = +???????????????? | | #?????## #???????????????? | | #??????# #???????????????? | | #??????## ######### ###???????????????? | | #???????# #???????# #?????????????????? | | #???????# #???????# #?????????????????? | | #???????/ #?##????# #?????????????????? | | #???????# ### ##### #?????????????????? | | ????????# ## # #?????????????????? | | ######### ##""" #s#?????????????????? | | =%| ] ##""" # #?????????????????? | | ##""" ! # #?????????????????? | | """ """ ## #s#########?????????? | | """ """ ##""" # [s ! #?????????? | | """ """ ##""" s%gg #?????????? | | """ """ ##""" # = #?????????? | | ## # sg "" #?????????? | | * ## ""#"""s """ #?????????? | | "# ## Y"#"R """ #?????????? | | "# ## ""#""" #?????????? | | ## ## # @ #?????????? | | ?# ######+######+#####?????????? | | ?# ??????????????????????????? | | ?# ????????????